[Event "Titled Tuesday Blitz July 11 Late 2023"]
[White "Svane, Rasmus"]
[Black "Nakamura, Hikaru"]
[WhiteFideId "4657101"]
[BlackFideId "2016192"]
[WhiteElo "2950"]
[BlackElo "3244"]
[Result "1-0"]
[Round "5"]
[TimeControl "180+2"]
[Date "2023.07.11"]
[WhiteClock "0:00:10"]
[BlackClock "0:00:02"]
[Board "2"]

1. Nf3 {[%clk 0:03:00]}  a6 {[%clk 0:03:00]} 2. g3 {[%clk 0:02:53]}  d6 {[%clk 0:02:52]} 3. d4 {[%clk 0:02:52]}  b5 {[%clk 0:02:46]} 4. Bg2 {[%clk 0:02:52]}  Bb7 {[%clk 0:02:45]} 5. O-O {[%clk 0:02:47]}  Nf6 {[%clk 0:02:46]} 6. b3 {[%clk 0:02:43]}  Nbd7 {[%clk 0:02:45]} 7. c4 {[%clk 0:02:42]}  e6 {[%clk 0:02:42]} 8. Nc3 {[%clk 0:02:37]}  b4 {[%clk 0:02:39]} 9. Na4 {[%clk 0:02:35]}  c5 {[%clk 0:02:30]} 10. a3 {[%clk 0:02:32]}  a5 {[%clk 0:02:30]} 11. axb4 {[%clk 0:02:30]}  axb4 {[%clk 0:02:31]} 12. Bb2 {[%clk 0:02:22]}  Be7 {[%clk 0:02:31]} 13. dxc5 {[%clk 0:02:21]}  dxc5 {[%clk 0:02:30]} 14. Ne5 {[%clk 0:02:20]}  Bxg2 {[%clk 0:02:24]} 15. Kxg2 {[%clk 0:02:21]}  O-O {[%clk 0:02:11]} 16. Nc6 {[%clk 0:02:21]}  Qe8 {[%clk 0:02:12]} 17. Qd3 {[%clk 0:02:19]}  Ra6 {[%clk 0:02:10]} 18. Nxe7+ {[%clk 0:02:15]}  Qxe7 {[%clk 0:02:10]} 19. Bxf6 {[%clk 0:02:02]}  Nxf6 {[%clk 0:02:07]} 20. Nb2 {[%clk 0:02:02]}  Rd6 {[%clk 0:01:52]} 21. Qf3 {[%clk 0:02:02]}  e5 {[%clk 0:01:51]} 22. Rfd1 {[%clk 0:01:57]}  e4 {[%clk 0:01:51]} 23. Qf4 {[%clk 0:01:50]}  Rd4 {[%clk 0:01:43]} 24. e3 {[%clk 0:01:32]}  Rdd8 {[%clk 0:01:42]} 25. Na4 {[%clk 0:01:22]}  Rd3 {[%clk 0:01:34]} 26. Qf5 {[%clk 0:01:19]}  Rfd8 {[%clk 0:01:22]} 27. Rdb1 {[%clk 0:01:01]}  Rd2 {[%clk 0:01:09]} 28. Qxc5 {[%clk 0:00:56]}  Qe6 {[%clk 0:01:05]} 29. Rb2 {[%clk 0:00:52]}  Qg4 {[%clk 0:00:56]} 30. Rxd2 {[%clk 0:00:52]}  Rxd2 {[%clk 0:00:57]} 31. Rf1 {[%clk 0:00:52]}  h5 {[%clk 0:00:52]} 32. Qxb4 {[%clk 0:00:48]}  h4 {[%clk 0:00:36]} 33. Qb8+ {[%clk 0:00:47]}  Kh7 {[%clk 0:00:36]} 34. Qf4 {[%clk 0:00:48]}  h3+ {[%clk 0:00:37]} 35. Kg1 {[%clk 0:00:48]}  Qd7 {[%clk 0:00:22]} 36. Nc3 {[%clk 0:00:44]}  Qd3 {[%clk 0:00:22]} 37. Nd5 {[%clk 0:00:40]}  Nxd5 {[%clk 0:00:20]} 38. cxd5 {[%clk 0:00:35]}  Qxd5 {[%clk 0:00:15]} 39. Qh4+ {[%clk 0:00:35]}  Kg8 {[%clk 0:00:15]} 40. Qxh3 {[%clk 0:00:34]}  Rb2 {[%clk 0:00:12]} 41. Qc8+ {[%clk 0:00:28]}  Kh7 {[%clk 0:00:13]} 42. Qc4 {[%clk 0:00:29]}  Qxc4 {[%clk 0:00:12]} 43. bxc4 {[%clk 0:00:29]}  Rc2 {[%clk 0:00:13]} 44. Rd1 {[%clk 0:00:30]}  Rxc4 {[%clk 0:00:13]} 45. g4 {[%clk 0:00:30]}  Rc6 {[%clk 0:00:11]} 46. Kg2 {[%clk 0:00:30]}  g5 {[%clk 0:00:11]} 47. Rd5 {[%clk 0:00:28]}  f6 {[%clk 0:00:11]} 48. Rd7+ {[%clk 0:00:27]}  Kg6 {[%clk 0:00:10]} 49. Re7 {[%clk 0:00:27]}  Rc4 {[%clk 0:00:11]} 50. h3 {[%clk 0:00:27]}  Ra4 {[%clk 0:00:11]} 51. Kg3 {[%clk 0:00:27]}  Rb4 {[%clk 0:00:11]} 52. h4 {[%clk 0:00:27]}  gxh4+ {[%clk 0:00:09]} 53. Kxh4 {[%clk 0:00:27]}  Ra4 {[%clk 0:00:07]} 54. Kg3 {[%clk 0:00:28]}  Rb4 {[%clk 0:00:08]} 55. Rd7 {[%clk 0:00:26]}  Rb1 {[%clk 0:00:05]} 56. Rd4 {[%clk 0:00:24]}  f5 {[%clk 0:00:06]} 57. Kf4 {[%clk 0:00:20]}  fxg4 {[%clk 0:00:06]} 58. Rxe4 {[%clk 0:00:16]}  Kh5 {[%clk 0:00:07]} 59. Re5+ {[%clk 0:00:13]}  Kh4 {[%clk 0:00:07]} 60. Re8 {[%clk 0:00:14]}  Kh3 {[%clk 0:00:03]} 61. e4 {[%clk 0:00:12]}  Rb4 {[%clk 0:00:03]} 62. Rg8 {[%clk 0:00:10]}  Rb2 {[%clk 0:00:02]} 63. Rh8+ {[%clk 0:00:09]}  Kg2 {[%clk 0:00:02]} 64. Kxg4 {[%clk 0:00:10]}  Rxf2 {[%clk 0:00:02]} 65. e5 {[%clk 0:00:10]}  Rf7 {[%clk 0:00:02]} 66. e6 {[%clk 0:00:10]} 1-0


[Site "https://www.chess.com"]

[Event "Titled Tuesday Blitz July 11 Late 2023"]
[White "He, Anthony"]
[Black "Licznerski, Lukasz"]
[WhiteFideId "2088215"]
[BlackFideId "1179250"]
[WhiteElo "2998"]
[BlackElo "2804"]
[Result "0-1"]
[Round "5"]
[TimeControl "180+2"]
[Date "2023.07.11"]
[WhiteClock "0:00:01"]
[BlackClock "0:00:03"]
[Board "7"]

1. d4 {[%clk 0:03:00]}  Nf6 {[%clk 0:02:59]} 2. Nc3 {[%clk 0:03:00]}  d5 {[%clk 0:02:59]} 3. Bf4 {[%clk 0:02:59]}  a6 {[%clk 0:02:56]} 4. e3 {[%clk 0:02:58]}  e6 {[%clk 0:02:56]} 5. g4 {[%clk 0:02:58]}  Bd6 {[%clk 0:02:54]} 6. g5 {[%clk 0:02:55]}  Bxf4 {[%clk 0:02:48]} 7. exf4 {[%clk 0:02:56]}  Ng8 {[%clk 0:02:42]} 8. h4 {[%clk 0:02:56]}  Ne7 {[%clk 0:02:41]} 9. Bd3 {[%clk 0:02:56]}  Qd6 {[%clk 0:02:37]} 10. Nge2 {[%clk 0:02:53]}  c5 {[%clk 0:02:29]} 11. dxc5 {[%clk 0:02:49]}  Qxc5 {[%clk 0:02:29]} 12. Qd2 {[%clk 0:02:50]}  Nbc6 {[%clk 0:02:27]} 13. O-O-O {[%clk 0:02:50]}  Qxf2 {[%clk 0:02:07]} 14. h5 {[%clk 0:02:49]}  h6 {[%clk 0:01:59]} 15. Rdf1 {[%clk 0:02:48]}  Qb6 {[%clk 0:01:39]} 16. Ng3 {[%clk 0:02:45]}  Bd7 {[%clk 0:01:38]} 17. gxh6 {[%clk 0:02:31]}  gxh6 {[%clk 0:01:37]} 18. f5 {[%clk 0:02:31]}  Ne5 {[%clk 0:01:23]} 19. fxe6 {[%clk 0:02:12]}  Bxe6 {[%clk 0:01:17]} 20. Rf6 {[%clk 0:01:58]}  O-O-O {[%clk 0:01:08]} 21. Rxh6 {[%clk 0:01:22]}  Rhg8 {[%clk 0:01:05]} 22. Nge2 {[%clk 0:01:18]}  Ng4 {[%clk 0:00:37]} 23. Rh7 {[%clk 0:01:18]}  Nf6 {[%clk 0:00:32]} 24. Rh6 {[%clk 0:01:17]}  Ng4 {[%clk 0:00:32]} 25. Rf1 {[%clk 0:01:02]}  Nxh6 {[%clk 0:00:30]} 26. Qxh6 {[%clk 0:01:03]}  Rh8 {[%clk 0:00:29]} 27. Qg5 {[%clk 0:01:02]}  Qd6 {[%clk 0:00:23]} 28. Nf4 {[%clk 0:00:57]}  Rdg8 {[%clk 0:00:21]} 29. Qf6 {[%clk 0:00:57]}  Nc6 {[%clk 0:00:11]} 30. Ncxd5 {[%clk 0:00:37]}  Kb8 {[%clk 0:00:11]} 31. a3 {[%clk 0:00:36]}  Qe5 {[%clk 0:00:11]} 32. Qxe5+ {[%clk 0:00:33]}  Nxe5 {[%clk 0:00:11]} 33. Nf6 {[%clk 0:00:33]}  Rg5 {[%clk 0:00:07]} 34. Be2 {[%clk 0:00:25]}  Rf5 {[%clk 0:00:04]} 35. Ne4 {[%clk 0:00:26]}  Bd5 {[%clk 0:00:02]} 36. Nxd5 {[%clk 0:00:26]}  Rxf1+ {[%clk 0:00:02]} 37. Bxf1 {[%clk 0:00:26]}  Rxh5 {[%clk 0:00:01]} 38. Be2 {[%clk 0:00:22]}  Rh1+ {[%clk 0:00:02]} 39. Kd2 {[%clk 0:00:22]}  Rh2 {[%clk 0:00:02]} 40. Ke3 {[%clk 0:00:22]}  Rh3+ {[%clk 0:00:02]} 41. Kf4 {[%clk 0:00:20]}  Ng6+ {[%clk 0:00:02]} 42. Kf5 {[%clk 0:00:18]}  Rh2 {[%clk 0:00:03]} 43. Bd3 {[%clk 0:00:18]}  Nh4+ {[%clk 0:00:02]} 44. Kf6 {[%clk 0:00:18]}  Nf3 {[%clk 0:00:02]} 45. Nc5 {[%clk 0:00:14]}  Ne1 {[%clk 0:00:02]} 46. Bf5 {[%clk 0:00:13]}  Nxc2 {[%clk 0:00:02]} 47. Kxf7 {[%clk 0:00:12]}  Nd4 {[%clk 0:00:02]} 48. Be4 {[%clk 0:00:10]}  Rxb2 {[%clk 0:00:03]} 49. Nb4 {[%clk 0:00:10]}  Nb5 {[%clk 0:00:03]} 50. Ke7 {[%clk 0:00:05]}  Nxa3 {[%clk 0:00:03]} 51. Nd5 {[%clk 0:00:04]}  Nc4 {[%clk 0:00:02]} 52. Bd3 {[%clk 0:00:03]}  Rb5 {[%clk 0:00:02]} 53. Bxc4 {[%clk 0:00:02]}  Rxc5 {[%clk 0:00:03]} 54. Bb3 {[%clk 0:00:03]}  Ka7 {[%clk 0:00:03]} 55. Kd6 {[%clk 0:00:03]}  Rc6+ {[%clk 0:00:03]} 56. Ke5 {[%clk 0:00:04]}  b5 {[%clk 0:00:04]} 57. Kd4 {[%clk 0:00:05]}  a5 {[%clk 0:00:04]} 58. Nc3 {[%clk 0:00:05]}  Kb6 {[%clk 0:00:03]} 59. Kd3 {[%clk 0:00:06]}  Rc8 {[%clk 0:00:03]} 60. Nd5+ {[%clk 0:00:06]}  Kc5 {[%clk 0:00:03]} 61. Ne3 {[%clk 0:00:05]}  Rd8+ {[%clk 0:00:03]} 62. Kc3 {[%clk 0:00:05]}  a4 {[%clk 0:00:04]} 63. Be6 {[%clk 0:00:01]}  Re8 {[%clk 0:00:03]} 0-1


[Site "https://www.chess.com"]

[Event "Titled Tuesday Blitz July 11 Late 2023"]
[White "Firouzja, Alireza"]
[Black "Sviridov, Valery"]
[WhiteFideId "12573981"]
[BlackFideId "4120680"]
[WhiteElo "3085"]
[BlackElo "2969"]
[Result "1-0"]
[Round "5"]
[TimeControl "180+2"]
[Date "2023.07.11"]
[WhiteClock "0:00:20"]
[BlackClock "0:00:11"]
[Board "9"]

1. d4 {[%clk 0:03:00]}  Nf6 {[%clk 0:02:58]} 2. Bg5 {[%clk 0:03:01]}  b6 {[%clk 0:02:57]} 3. Nc3 {[%clk 0:02:53]}  Bb7 {[%clk 0:02:56]} 4. Qd3 {[%clk 0:02:50]}  d5 {[%clk 0:02:51]} 5. O-O-O {[%clk 0:02:49]}  e6 {[%clk 0:02:50]} 6. f3 {[%clk 0:02:48]}  h6 {[%clk 0:02:40]} 7. Bh4 {[%clk 0:02:46]}  Be7 {[%clk 0:02:38]} 8. e4 {[%clk 0:02:37]}  a6 {[%clk 0:02:34]} 9. e5 {[%clk 0:02:35]}  Nfd7 {[%clk 0:02:35]} 10. Bxe7 {[%clk 0:02:36]}  Qxe7 {[%clk 0:02:35]} 11. f4 {[%clk 0:02:37]}  c5 {[%clk 0:02:33]} 12. Qg3 {[%clk 0:02:23]}  g5 {[%clk 0:02:26]} 13. Nf3 {[%clk 0:02:20]}  gxf4 {[%clk 0:02:14]} 14. Qxf4 {[%clk 0:02:12]}  Nc6 {[%clk 0:02:13]} 15. Ne2 {[%clk 0:02:09]}  O-O-O {[%clk 0:02:10]} 16. c3 {[%clk 0:02:04]}  f6 {[%clk 0:02:07]} 17. exf6 {[%clk 0:02:02]}  Qxf6 {[%clk 0:02:08]} 18. g3 {[%clk 0:01:40]}  Rhf8 {[%clk 0:01:38]} 19. Bh3 {[%clk 0:01:27]}  Rde8 {[%clk 0:01:36]} 20. Qxf6 {[%clk 0:01:16]}  Rxf6 {[%clk 0:01:25]} 21. Nf4 {[%clk 0:01:17]}  Kc7 {[%clk 0:01:23]} 22. Rhe1 {[%clk 0:01:15]}  Nd8 {[%clk 0:01:19]} 23. Ne5 {[%clk 0:01:08]}  Nxe5 {[%clk 0:01:17]} 24. Rxe5 {[%clk 0:01:09]}  Bc8 {[%clk 0:01:03]} 25. Nxd5+ {[%clk 0:00:45]}  exd5 {[%clk 0:01:03]} 26. Bxc8 {[%clk 0:00:46]}  Rxe5 {[%clk 0:00:49]} 27. dxe5 {[%clk 0:00:47]}  Rf2 {[%clk 0:00:49]} 28. Bxa6 {[%clk 0:00:38]}  Rxh2 {[%clk 0:00:25]} 29. Rxd5 {[%clk 0:00:38]}  Rh1+ {[%clk 0:00:25]} 30. Kc2 {[%clk 0:00:35]}  Re1 {[%clk 0:00:24]} 31. Bb5 {[%clk 0:00:34]}  Nc6 {[%clk 0:00:24]} 32. Bxc6 {[%clk 0:00:29]}  Kxc6 {[%clk 0:00:24]} 33. Rd6+ {[%clk 0:00:30]}  Kc7 {[%clk 0:00:25]} 34. Rxh6 {[%clk 0:00:31]}  Rxe5 {[%clk 0:00:25]} 35. Rg6 {[%clk 0:00:27]}  Re2+ {[%clk 0:00:24]} 36. Kb3 {[%clk 0:00:27]}  b5 {[%clk 0:00:24]} 37. a3 {[%clk 0:00:23]}  Rg2 {[%clk 0:00:24]} 38. g4 {[%clk 0:00:23]}  Kb7 {[%clk 0:00:24]} 39. g5 {[%clk 0:00:24]}  Ka7 {[%clk 0:00:21]} 40. Rg8 {[%clk 0:00:23]}  Kb6 {[%clk 0:00:19]} 41. g6 {[%clk 0:00:24]}  c4+ {[%clk 0:00:19]} 42. Ka2 {[%clk 0:00:24]}  Kb7 {[%clk 0:00:19]} 43. g7 {[%clk 0:00:22]}  Ka7 {[%clk 0:00:20]} 44. a4 {[%clk 0:00:23]}  b4 {[%clk 0:00:19]} 45. cxb4 {[%clk 0:00:20]}  c3 {[%clk 0:00:11]} 46. Rc8 {[%clk 0:00:20]} 1-0


[Site "https://www.chess.com"]

[Event "Titled Tuesday Blitz July 11 Late 2023"]
[White "Pranav, V"]
[Black "Hong, Andrew"]
[WhiteFideId "25060783"]
[BlackFideId "2099438"]
[WhiteElo "2953"]
[BlackElo "3082"]
[Result "1-0"]
[Round "5"]
[TimeControl "180+2"]
[Date "2023.07.11"]
[WhiteClock "0:00:09"]
[BlackClock "0:00:00"]
[Board "10"]

1. e4 {[%clk 0:03:00]}  e5 {[%clk 0:02:59]} 2. Nf3 {[%clk 0:03:00]}  Nc6 {[%clk 0:02:59]} 3. Bb5 {[%clk 0:03:01]}  a6 {[%clk 0:02:59]} 4. Ba4 {[%clk 0:03:00]}  d6 {[%clk 0:02:58]} 5. Bxc6+ {[%clk 0:02:59]}  bxc6 {[%clk 0:02:59]} 6. d4 {[%clk 0:03:00]}  exd4 {[%clk 0:02:59]} 7. Qxd4 {[%clk 0:02:59]}  Nf6 {[%clk 0:02:41]} 8. O-O {[%clk 0:02:57]}  Be7 {[%clk 0:02:40]} 9. Nc3 {[%clk 0:02:57]}  O-O {[%clk 0:02:37]} 10. Bf4 {[%clk 0:02:44]}  Rb8 {[%clk 0:02:32]} 11. b3 {[%clk 0:02:36]}  Bg4 {[%clk 0:02:31]} 12. Qd3 {[%clk 0:02:33]}  Bxf3 {[%clk 0:02:22]} 13. Qxf3 {[%clk 0:02:34]}  Nd7 {[%clk 0:02:17]} 14. Rad1 {[%clk 0:02:24]}  Bf6 {[%clk 0:02:17]} 15. Na4 {[%clk 0:02:22]}  Re8 {[%clk 0:02:12]} 16. c4 {[%clk 0:02:22]}  Qe7 {[%clk 0:02:11]} 17. Rfe1 {[%clk 0:02:20]}  Qe6 {[%clk 0:02:03]} 18. h3 {[%clk 0:02:19]}  Ne5 {[%clk 0:01:51]} 19. Qe2 {[%clk 0:02:16]}  Ng6 {[%clk 0:01:47]} 20. Bc1 {[%clk 0:02:04]}  Be5 {[%clk 0:01:42]} 21. c5 {[%clk 0:02:01]}  Rb5 {[%clk 0:01:42]} 22. Qc2 {[%clk 0:01:51]}  Rc8 {[%clk 0:01:05]} 23. Be3 {[%clk 0:01:29]}  h6 {[%clk 0:00:53]} 24. cxd6 {[%clk 0:01:24]}  Bxd6 {[%clk 0:00:50]} 25. Nb2 {[%clk 0:01:15]}  Re8 {[%clk 0:00:47]} 26. Nc4 {[%clk 0:01:12]}  Bb4 {[%clk 0:00:43]} 27. Bd2 {[%clk 0:01:04]}  Nh4 {[%clk 0:00:43]} 28. Bxb4 {[%clk 0:00:51]}  Rg5 {[%clk 0:00:31]} 29. g4 {[%clk 0:00:27]}  h5 {[%clk 0:00:16]} 30. f4 {[%clk 0:00:20]}  Rxg4+ {[%clk 0:00:12]} 31. hxg4 {[%clk 0:00:21]}  Qxg4+ {[%clk 0:00:13]} 32. Kf1 {[%clk 0:00:22]}  Qh3+ {[%clk 0:00:09]} 33. Ke2 {[%clk 0:00:22]}  Qf3+ {[%clk 0:00:04]} 34. Kd2 {[%clk 0:00:21]}  Qxf4+ {[%clk 0:00:04]} 35. Kc3 {[%clk 0:00:19]}  Nf3 {[%clk 0:00:05]} 36. Kb2 {[%clk 0:00:13]}  Nxe1 {[%clk 0:00:02]} 37. Rxe1 {[%clk 0:00:14]}  g5 {[%clk 0:00:02]} 38. Bc3 {[%clk 0:00:14]}  g4 {[%clk 0:00:01]} 39. e5 {[%clk 0:00:14]}  g3 {[%clk 0:00:01]} 40. e6 {[%clk 0:00:10]}  f5 {[%clk 0:00:01]} 41. Qe2 {[%clk 0:00:08]}  Qg4 {[%clk 0:00:00]} 42. Qe5 {[%clk 0:00:09]} 1-0


[Site "https://www.chess.com"]

[Event "Titled Tuesday Blitz July 11 Late 2023"]
[White "Bluebaum, Matthias"]
[Black "Grigoriants, Sergey"]
[WhiteFideId "24651516"]
[BlackFideId "4130804"]
[WhiteElo "3049"]
[BlackElo "2916"]
[Result "0-1"]
[Round "5"]
[TimeControl "180+2"]
[Date "2023.07.11"]
[WhiteClock "0:00:25"]
[BlackClock "0:00:15"]
[Board "11"]

1. d4 {[%clk 0:03:00]}  d5 {[%clk 0:02:55]} 2. c4 {[%clk 0:03:00]}  c6 {[%clk 0:02:55]} 3. Nf3 {[%clk 0:02:59]}  Nf6 {[%clk 0:02:56]} 4. Nc3 {[%clk 0:03:00]}  dxc4 {[%clk 0:02:56]} 5. e4 {[%clk 0:03:00]}  b5 {[%clk 0:02:55]} 6. Qc2 {[%clk 0:03:01]}  e6 {[%clk 0:02:47]} 7. Be2 {[%clk 0:03:00]}  Na6 {[%clk 0:02:47]} 8. O-O {[%clk 0:02:59]}  Be7 {[%clk 0:02:43]} 9. a3 {[%clk 0:02:57]}  O-O {[%clk 0:02:34]} 10. e5 {[%clk 0:02:58]}  Nd5 {[%clk 0:02:34]} 11. Ne4 {[%clk 0:02:58]}  h6 {[%clk 0:02:31]} 12. b3 {[%clk 0:02:51]}  cxb3 {[%clk 0:02:25]} 13. Qxb3 {[%clk 0:02:52]}  c5 {[%clk 0:02:26]} 14. Bxb5 {[%clk 0:02:45]}  cxd4 {[%clk 0:02:14]} 15. Nxd4 {[%clk 0:02:20]}  Nc5 {[%clk 0:02:14]} 16. Qc2 {[%clk 0:02:01]}  Qb6 {[%clk 0:01:05]} 17. Bc6 {[%clk 0:01:37]}  Nxe4 {[%clk 0:00:34]} 18. Qxe4 {[%clk 0:01:21]}  Nc3 {[%clk 0:00:34]} 19. Qf3 {[%clk 0:00:37]}  Qxd4 {[%clk 0:00:34]} 20. Be3 {[%clk 0:00:38]}  Qxe5 {[%clk 0:00:15]} 21. Bxa8 {[%clk 0:00:38]}  Ba6 {[%clk 0:00:15]} 22. Rfe1 {[%clk 0:00:39]}  Bf6 {[%clk 0:00:08]} 23. Bb7 {[%clk 0:00:26]}  Be2 {[%clk 0:00:05]} 24. Qg3 {[%clk 0:00:20]}  Qb5 {[%clk 0:00:05]} 25. Qc7 {[%clk 0:00:08]}  Bd3 {[%clk 0:00:04]} 26. Rac1 {[%clk 0:00:03]}  Ne2+ {[%clk 0:00:04]} 27. Rxe2 {[%clk 0:00:03]}  Bxe2 {[%clk 0:00:05]} 28. h3 {[%clk 0:00:03]}  Bd3 {[%clk 0:00:05]} 29. Bf3 {[%clk 0:00:03]}  Qb2 {[%clk 0:00:05]} 30. Rd1 {[%clk 0:00:04]}  Be2 {[%clk 0:00:04]} 31. Re1 {[%clk 0:00:02]}  Bxf3 {[%clk 0:00:04]} 32. gxf3 {[%clk 0:00:03]}  Qxa3 {[%clk 0:00:05]} 33. Qxa7 {[%clk 0:00:04]}  Qxa7 {[%clk 0:00:04]} 34. Bxa7 {[%clk 0:00:05]}  Rc8 {[%clk 0:00:05]} 35. Be3 {[%clk 0:00:05]}  g5 {[%clk 0:00:03]} 36. Rd1 {[%clk 0:00:05]}  Kg7 {[%clk 0:00:03]} 37. Rd7 {[%clk 0:00:05]}  Kg6 {[%clk 0:00:04]} 38. Kg2 {[%clk 0:00:06]}  Rc6 {[%clk 0:00:04]} 39. Rb7 {[%clk 0:00:06]}  Ra6 {[%clk 0:00:04]} 40. Rd7 {[%clk 0:00:05]}  Ra4 {[%clk 0:00:04]} 41. Rd8 {[%clk 0:00:05]}  Bxd8 {[%clk 0:00:04]} 42. Bc5 {[%clk 0:00:05]}  Bf6 {[%clk 0:00:04]} 43. Be3 {[%clk 0:00:05]}  Rc4 {[%clk 0:00:05]} 44. Bd2 {[%clk 0:00:06]}  Bd4 {[%clk 0:00:06]} 45. Kf1 {[%clk 0:00:06]}  Rc2 {[%clk 0:00:06]} 46. Be1 {[%clk 0:00:07]}  Bc5 {[%clk 0:00:06]} 47. Ba5 {[%clk 0:00:07]}  Rxf2+ {[%clk 0:00:06]} 48. Ke1 {[%clk 0:00:08]}  Ra2 {[%clk 0:00:06]} 49. Bd2 {[%clk 0:00:08]}  Rxd2 {[%clk 0:00:05]} 50. Kxd2 {[%clk 0:00:09]}  Kf5 {[%clk 0:00:06]} 51. Ke2 {[%clk 0:00:10]}  Kf4 {[%clk 0:00:07]} 52. Kf1 {[%clk 0:00:11]}  Kxf3 {[%clk 0:00:07]} 53. Ke1 {[%clk 0:00:12]}  Kg3 {[%clk 0:00:08]} 54. Kd2 {[%clk 0:00:13]}  Kxh3 {[%clk 0:00:08]} 55. Kd3 {[%clk 0:00:14]}  g4 {[%clk 0:00:09]} 56. Ke4 {[%clk 0:00:15]}  g3 {[%clk 0:00:10]} 57. Ke5 {[%clk 0:00:16]}  g2 {[%clk 0:00:11]} 58. Kf6 {[%clk 0:00:17]}  g1=Q {[%clk 0:00:11]} 59. Kxf7 {[%clk 0:00:17]}  Qg5 {[%clk 0:00:12]} 60. Ke8 {[%clk 0:00:18]}  Qf6 {[%clk 0:00:12]} 61. Kd7 {[%clk 0:00:19]}  e5 {[%clk 0:00:12]} 62. Kc8 {[%clk 0:00:20]}  e4 {[%clk 0:00:13]} 63. Kb7 {[%clk 0:00:21]}  e3 {[%clk 0:00:14]} 64. Ka8 {[%clk 0:00:22]}  e2 {[%clk 0:00:14]} 65. Kb7 {[%clk 0:00:23]}  e1=Q {[%clk 0:00:14]} 66. Ka8 {[%clk 0:00:24]}  Qe8+ {[%clk 0:00:14]} 67. Kb7 {[%clk 0:00:25]}  Qb6# {[%clk 0:00:15]} 0-1


[Site "https://www.chess.com"]

[Event "Titled Tuesday Blitz July 11 Late 2023"]
[White "Oparin, Grigoriy"]
[Black "Andreassen, Lars"]
[WhiteFideId "24125890"]
[BlackFideId "1504878"]
[WhiteElo "2986"]
[BlackElo "2409"]
[Result "1-0"]
[Round "5"]
[TimeControl "180+2"]
[Date "2023.07.11"]
[WhiteClock "0:00:08"]
[BlackClock "0:00:00"]
[Board "14"]

1. b3 {[%clk 0:03:00]}  d5 {[%clk 0:02:59]} 2. Bb2 {[%clk 0:03:00]}  Nf6 {[%clk 0:02:59]} 3. Nf3 {[%clk 0:03:00]}  Bg4 {[%clk 0:02:58]} 4. e3 {[%clk 0:02:59]}  Nbd7 {[%clk 0:02:57]} 5. h3 {[%clk 0:02:59]}  Bxf3 {[%clk 0:02:53]} 6. Qxf3 {[%clk 0:03:00]}  c6 {[%clk 0:02:52]} 7. g3 {[%clk 0:02:58]}  e5 {[%clk 0:02:51]} 8. Bg2 {[%clk 0:02:59]}  Bd6 {[%clk 0:02:51]} 9. Qe2 {[%clk 0:02:59]}  Qe7 {[%clk 0:02:51]} 10. d3 {[%clk 0:02:58]}  O-O {[%clk 0:02:47]} 11. a3 {[%clk 0:02:59]}  Rae8 {[%clk 0:02:47]} 12. Nd2 {[%clk 0:02:58]}  a5 {[%clk 0:02:27]} 13. g4 {[%clk 0:02:57]}  h6 {[%clk 0:02:25]} 14. h4 {[%clk 0:02:58]}  Nh7 {[%clk 0:02:13]} 15. c4 {[%clk 0:02:40]}  d4 {[%clk 0:02:02]} 16. Ne4 {[%clk 0:02:34]}  dxe3 {[%clk 0:01:51]} 17. fxe3 {[%clk 0:02:33]}  Nc5 {[%clk 0:01:44]} 18. g5 {[%clk 0:02:30]}  Nxb3 {[%clk 0:01:29]} 19. Ra2 {[%clk 0:02:12]}  f5 {[%clk 0:01:21]} 20. gxf6 {[%clk 0:01:58]}  Nxf6 {[%clk 0:01:20]} 21. h5 {[%clk 0:01:43]}  Nc5 {[%clk 0:01:07]} 22. Nxc5 {[%clk 0:01:40]}  Bxc5 {[%clk 0:01:06]} 23. Rf1 {[%clk 0:01:40]}  Qf7 {[%clk 0:00:49]} 24. Bc3 {[%clk 0:01:29]}  Qxh5 {[%clk 0:00:47]} 25. Qxh5 {[%clk 0:01:24]}  Nxh5 {[%clk 0:00:47]} 26. Rxf8+ {[%clk 0:01:25]}  Rxf8 {[%clk 0:00:45]} 27. d4 {[%clk 0:01:20]}  exd4 {[%clk 0:00:41]} 28. exd4 {[%clk 0:01:21]}  Bb6 {[%clk 0:00:39]} 29. c5 {[%clk 0:01:09]}  Bc7 {[%clk 0:00:39]} 30. d5 {[%clk 0:01:10]}  cxd5 {[%clk 0:00:38]} 31. Bxd5+ {[%clk 0:01:10]}  Kh8 {[%clk 0:00:38]} 32. Bxb7 {[%clk 0:01:07]}  Bg3+ {[%clk 0:00:36]} 33. Kd1 {[%clk 0:00:58]}  Nf4 {[%clk 0:00:35]} 34. Rd2 {[%clk 0:00:53]}  Ne6 {[%clk 0:00:26]} 35. c6 {[%clk 0:00:53]}  Nc5 {[%clk 0:00:23]} 36. Rd5 {[%clk 0:00:43]}  Ne4 {[%clk 0:00:20]} 37. Bxa5 {[%clk 0:00:40]}  Rf1+ {[%clk 0:00:16]} 38. Kc2 {[%clk 0:00:40]}  Rf2+ {[%clk 0:00:16]} 39. Kb3 {[%clk 0:00:40]}  Rf3+ {[%clk 0:00:14]} 40. Kc2 {[%clk 0:00:21]}  Rxa3 {[%clk 0:00:09]} 41. Bb4 {[%clk 0:00:12]}  Ra2+ {[%clk 0:00:07]} 42. Kb3 {[%clk 0:00:12]}  Ra1 {[%clk 0:00:06]} 43. Rd4 {[%clk 0:00:11]}  Rb1+ {[%clk 0:00:04]} 44. Ka4 {[%clk 0:00:12]}  Ra1+ {[%clk 0:00:03]} 45. Kb5 {[%clk 0:00:12]}  Nf6 {[%clk 0:00:02]} 46. Bc8 {[%clk 0:00:07]}  Rb1 {[%clk 0:00:02]} 47. Ka4 {[%clk 0:00:07]}  Ra1+ {[%clk 0:00:02]} 48. Kb3 {[%clk 0:00:07]}  Rb1+ {[%clk 0:00:02]} 49. Kc2 {[%clk 0:00:08]}  Ra1 {[%clk 0:00:02]} 50. Bf5 {[%clk 0:00:08]}  Ra2+ {[%clk 0:00:00]} 51. Kb3 {[%clk 0:00:08]} 1-0


[Site "https://www.chess.com"]